fUSD/lending_fUSD_20260329
["ID","MTS","AMOUNT","RATE_DAILY","PERIOD"]
[419048204,1774810241420,-500.0,0.00013695,2]
[419048205,1774810241430,-500.0,0.00013695,2]
[419048206,1774810241440,-396.68097798,0.00013695,2]
[419048207,1774810241451,-150.0,0.00013695,2]
[419048208,1774810241461,-162.55307459,0.00013695,2]
[419048209,1774810241471,-500.0,0.00013698,2]
[419048210,1774810241480,-500.0,0.00013698,2]
[419048211,1774810241489,-500.0,0.00013698,2]
[419048212,1774810241498,-500.0,0.00013698,2]
[419048213,1774810241508,-500.0,0.00013698,2]
[419048214,1774810241518,-500.0,0.00013698,2]
[419048215,1774810241528,-500.0,0.00013698,2]
[419048216,1774810241538,-500.0,0.00013698,2]
[419048217,1774810241547,-500.0,0.00013698,2]
[419048218,1774810241556,-500.0,0.00013698,2]
[419048219,1774810241566,-500.0,0.00013698,2]
[419048220,1774810241575,-614.55459126,0.00013698,2]
[419048221,1774810241584,-627.39,0.00013698,2]
[419048222,1774810241594,-627.39,0.00013698,2]
[419048223,1774810241604,-627.39,0.00013698,2]
[419048224,1774810241614,-627.39,0.00013698,2]
[419048225,1774810241623,-627.39,0.00013698,2]
[419048226,1774810241634,-627.39,0.00013698,2]
[419048227,1774810241643,-627.39,0.00013698,2]
[419048228,1774810241654,-627.39,0.00013698,2]
[419048229,1774810241663,-627.39,0.00013698,2]
[419048230,1774810241674,-627.39,0.00013698,2]
[419048231,1774810241684,-627.39,0.00013698,2]
[419048232,1774810241695,-627.39,0.00013698,2]
[419048233,1774810241705,-627.39,0.00013698,2]
[419048234,1774810241714,-627.39,0.00013698,2]
[419048235,1774810241724,-500.0,0.00013698,2]
[419048236,1774810241734,-500.0,0.00013698,2]
[419048237,1774810241743,-500.0,0.00013698,2]
[419048238,1774810241752,-500.0,0.00013698,2]
[419048239,1774810241762,-500.0,0.00013698,2]
[419048240,1774810241771,-500.0,0.00013698,2]
[419048241,1774810241781,-500.0,0.00013698,2]
[419048242,1774810241791,-500.0,0.00013698,2]
[419048243,1774810241800,-500.0,0.00013698,2]
[419048244,1774810241810,-500.0,0.00013698,2]
[419048245,1774810241820,-500.0,0.00013698,2]
[419048246,1774810241830,-500.0,0.00013698,2]
[419048247,1774810241839,-500.0,0.00013698,2]
[419048248,1774810241850,-500.0,0.00013698,2]
[419048249,1774810241860,-500.0,0.00013698,2]
[419048250,1774810241869,-500.0,0.00013698,2]
[419048251,1774810241879,-500.0,0.00013698,2]
[419048252,1774810241889,-500.0,0.00013698,2]
[419048253,1774810241899,-500.0,0.00013698,2]
[419048254,1774810241910,-500.0,0.00013698,2]
[419048255,1774810241920,-500.0,0.00013698,2]
[419048256,1774810241930,-500.0,0.00013698,2]
[419048257,1774810241940,-500.0,0.00013698,2]
[419048258,1774810241950,-500.0,0.00013698,2]
[419048259,1774810241960,-500.0,0.00013698,2]
[419048260,1774810241969,-279.07,0.00013698,2]
[419048261,1774810241980,-500.0,0.00013698,2]
[419048262,1774810241989,-500.0,0.00013698,2]
[419048263,1774810241999,-500.0,0.00013698,2]
[419048264,1774810242009,-476.77743701,0.00013698,2]
[419048265,1774810242018,-500.0,0.00013698,2]
[419048266,1774810242028,-500.0,0.00013698,2]
[419048267,1774810242038,-500.0,0.00013698,2]
[419048268,1774810242048,-500.0,0.00013698,2]
[419048269,1774810242057,-500.0,0.00013698,2]
[419048270,1774810242067,-500.0,0.00013698,2]
[419048271,1774810242076,-500.0,0.00013698,2]
[419048272,1774810242086,-500.0,0.00013698,2]
[419048273,1774810242095,-500.0,0.00013698,2]
[419048274,1774810242105,-500.0,0.00013698,2]
[419048275,1774810242114,-600.87743374,0.00013698,2]
[419048276,1774810242124,-502.37596608,0.00013698,2]
[419048277,1774810242135,-500.0,0.00013698,2]
[419048278,1774810242144,-500.0,0.00013698,2]
[419048279,1774810242154,-500.0,0.00013698,2]
[419048280,1774810242166,-500.0,0.00013698,2]
[419048281,1774810242177,-500.0,0.00013698,2]
[419048282,1774810242186,-500.0,0.00013698,2]
[419048283,1774810242195,-500.0,0.00013698,2]
[419048284,1774810242205,-500.0,0.00013698,2]
[419048285,1774810242215,-500.0,0.00013698,2]
[419048286,1774810242224,-500.0,0.00013698,2]
[419048287,1774810242233,-500.0,0.00013698,2]
[419048288,1774810242243,-500.0,0.00013698,2]
[419048289,1774810242253,-500.0,0.00013698,2]
[419048290,1774810242262,-500.0,0.00013698,2]
[419048291,1774810242272,-500.0,0.00013698,2]
[419048292,1774810242281,-500.0,0.00013698,2]
[419048293,1774810242291,-500.0,0.00013698,2]
[419048294,1774810242301,-500.0,0.00013698,2]
[419048295,1774810242310,-500.0,0.00013698,2]
[419048296,1774810242320,-500.0,0.00013698,2]
[419048297,1774810242329,-500.0,0.00013698,2]
[419048298,1774810242339,-500.0,0.00013698,2]
[419048299,1774810242348,-500.0,0.00013698,2]
[419048300,1774810242358,-500.0,0.00013698,2]
[419048301,1774810242368,-500.0,0.00013698,2]
[419048302,1774810242377,-500.0,0.00013698,2]
[419048303,1774810242387,-500.0,0.00013698,2]
[419048304,1774810242396,-500.0,0.00013698,2]
[419048305,1774810242406,-500.0,0.00013698,2]
[419048306,1774810242416,-500.0,0.00013698,2]
[419048307,1774810242426,-500.0,0.00013698,2]
[419048308,1774810242436,-165.84451474,0.00013698,2]
[419048309,1774810242446,-500.0,0.00013698,2]
[419048310,1774810242455,-420.74775151,0.00013698,2]
[419048311,1774810242465,-500.0,0.00013698,2]
[419048312,1774810242474,-500.0,0.00013698,2]
[419048313,1774810242484,-500.0,0.00013698,2]
[419048314,1774810242493,-500.0,0.00013698,2]
[419048315,1774810242503,-500.0,0.00013698,2]
[419048316,1774810242512,-500.0,0.00013698,2]
[419048317,1774810242522,-500.0,0.00013698,2]
[419048318,1774810242531,-500.0,0.00013698,2]
[419048319,1774810242540,-500.0,0.00013698,2]
[419048320,1774810242550,-415.88455514,0.00013698,2]
[419048321,1774810242559,-500.0,0.00013698,2]
[419048322,1774810242569,-500.0,0.00013698,2]
[419048323,1774810242578,-500.0,0.00013698,2]
[419048324,1774810242588,-500.0,0.00013698,2]
[419048325,1774810242597,-500.0,0.00013698,2]
[419048326,1774810242607,-500.0,0.00013698,2]
[419048327,1774810242617,-500.0,0.00013698,2]
[419048328,1774810242626,-517.37860543,0.00013698,2]
[419048329,1774810242636,-272.52626615,0.00013698,2]
[419048330,1774810242647,-150.71545743,0.00013698,2]
[419048331,1774810242657,-500.0,0.00013698,2]
[419048332,1774810242667,-500.0,0.00013698,2]
[419048333,1774810242677,-500.0,0.00013698,2]
[419048334,1774810242686,-500.0,0.00013698,2]
[419048335,1774810242695,-500.0,0.00013698,2]
[419048336,1774810242705,-500.0,0.00013698,2]
[419048337,1774810242714,-500.0,0.00013698,2]
[419048338,1774810242724,-500.0,0.00013698,2]
[419048339,1774810242733,-500.0,0.00013698,2]
[419048340,1774810242742,-500.0,0.00013698,2]
[419048341,1774810242752,-500.0,0.00013698,2]
[419048342,1774810242762,-500.0,0.00013698,2]
[419048343,1774810242772,-500.0,0.00013698,2]
[419048344,1774810242781,-475.92101881,0.00013698,2]
[419048345,1774810242791,-632.17718216,0.00013698,2]
[419048346,1774810242801,-500.0,0.00013698,2]
[419048347,1774810242811,-500.0,0.00013698,2]
[419048348,1774810242820,-500.0,0.00013698,2]
[419048349,1774810242830,-173.34235598,0.00013698,2]
[419048351,1774810242839,-662.29,0.00013698,2]
[419048353,1774810242850,-662.29,0.00013698,2]
[419048355,1774810242859,-662.29,0.00013698,2]
[419048356,1774810242868,-662.29,0.00013698,2]
[419048357,1774810242878,-662.29,0.00013698,2]
[419048359,1774810242887,-662.29,0.00013698,2]
[419048361,1774810242897,-662.29,0.00013698,2]
[419048362,1774810242906,-662.29,0.00013698,2]
[419048363,1774810242916,-662.29,0.00013698,2]
[419048364,1774810242926,-662.29,0.00013698,2]
[419048365,1774810242935,-662.29,0.00013698,2]
[419048366,1774810242944,-662.29,0.00013698,2]
[419048367,1774810242954,-662.29,0.00013698,2]
[419048368,1774810242963,-662.29,0.00013698,2]
[419048370,1774810242974,-504.98451162,0.00013698,2]
[419048371,1774810242984,-500.0,0.00013698,2]
[419048372,1774810242994,-500.0,0.00013698,2]
[419048373,1774810243003,-500.0,0.00013698,2]
[419048374,1774810243013,-500.0,0.00013698,2]
[419048375,1774810243023,-500.0,0.00013698,2]
[419048376,1774810243032,-500.0,0.00013698,2]
[419048377,1774810243041,-500.0,0.00013698,2]
[419048378,1774810243052,-500.0,0.00013698,2]
[419048379,1774810243062,-500.0,0.00013698,2]
[419048380,1774810243071,-500.0,0.00013698,2]
[419048381,1774810243081,-500.0,0.00013698,2]
[419048382,1774810243091,-500.0,0.00013698,2]
[419048383,1774810243100,-500.0,0.00013698,2]
[419048384,1774810243110,-500.0,0.00013698,2]
[419048385,1774810243120,-1028.23,0.00013698,2]
[419048386,1774810243129,-1028.23,0.00013698,2]
[419048387,1774810243139,-1028.23,0.00013698,2]
[419048388,1774810243149,-1028.23,0.00013698,2]
[419048389,1774810243158,-1028.23,0.00013698,2]
[419048390,1774810243168,-1028.23,0.00013698,2]
[419048391,1774810243178,-1028.23,0.00013698,2]
[419048392,1774810243187,-1028.23,0.00013698,2]
[419048393,1774810243198,-1028.23,0.00013698,2]
[419048394,1774810243208,-1028.23,0.00013698,2]
[419048395,1774810243217,-1028.23,0.00013698,2]
[419048396,1774810243227,-1028.23,0.00013698,2]
[419048397,1774810243237,-1028.23,0.00013698,2]
[419048398,1774810243247,-1028.23,0.00013698,2]
[419048399,1774810243257,-500.0,0.00013698,2]
[419048400,1774810243315,-500.0,0.00013698,2]
[419048401,1774810243325,-4309.13253679,0.00013698,2]
[419048402,1774810243336,-6793.18290908,0.00013698,2]
[419048403,1774810243346,-500.0,0.00013698,2]
[419048404,1774810243356,-500.0,0.00013698,2]
[419048405,1774810243366,-500.0,0.00013698,2]
[419048406,1774810243375,-500.0,0.00013698,2]
[419048407,1774810243385,-500.0,0.00013698,2]
[419048408,1774810243396,-500.0,0.00013698,2]
[419048409,1774810243406,-500.0,0.00013698,2]
[419048410,1774810243416,-500.0,0.00013698,2]
[419048412,1774810243425,-500.0,0.00013698,2]
[419048413,1774810243435,-500.0,0.00013698,2]
[419048414,1774810243444,-500.0,0.00013698,2]
[419048415,1774810243454,-500.0,0.00013698,2]
[419048416,1774810243464,-500.0,0.00013698,2]
[419048417,1774810243474,-500.0,0.00013698,2]
[419048418,1774810243484,-500.0,0.00013698,2]
[419048419,1774810243494,-500.0,0.00013698,2]
[419048420,1774810243503,-500.0,0.00013698,2]
[419048421,1774810243513,-500.0,0.00013698,2]
[419048422,1774810243523,-500.0,0.00013698,2]
[419048423,1774810243532,-500.0,0.00013698,2]
[419048424,1774810243542,-500.0,0.00013698,2]
[419048425,1774810243551,-329.44503174,0.00013698,2]
[419048426,1774810243561,-500.0,0.00013698,2]
[419048427,1774810243571,-500.0,0.00013698,2]
[419048429,1774810243581,-500.0,0.00013698,2]
[419048430,1774810243591,-500.0,0.00013698,2]
[419048432,1774810243600,-500.0,0.00013698,2]
[419048433,1774810243610,-500.0,0.00013698,2]
[419048434,1774810243620,-500.0,0.00013698,2]
[419048436,1774810243630,-500.0,0.00013698,2]
[419048437,1774810243639,-500.0,0.00013698,2]
[419048438,1774810243649,-500.0,0.00013698,2]
[419048439,1774810243659,-150.0,0.00013699,2]
[419048440,1774810243669,-150.0,0.00013699,2]
[419048441,1774810243678,-150.0,0.00013699,2]
[419048443,1774810243688,-785.52,0.00013699,2]
[419048445,1774810243697,-200.0,0.00013699,2]
[419048446,1774810243707,-3240.52,0.00013699,2]
[419048447,1774810243716,-500.0,0.00013699,2]
[419048448,1774810243727,-500.0,0.00013699,2]
[419048449,1774810243736,-500.0,0.00013699,2]
[419048450,1774810243746,-500.0,0.00013699,2]
[419048451,1774810243756,-286.26486585,0.00013699,2]
[419048452,1774810243766,-500.0,0.00013699,2]
[419048453,1774810243775,-500.98440072,0.00013699,2]
[419048454,1774810243786,-500.0,0.00013699,2]
[419048455,1774810243796,-500.0,0.00013699,2]
[419048456,1774810243805,-500.0,0.00013699,2]
[419048457,1774810243815,-500.0,0.00013699,2]
[419048458,1774810243825,-500.0,0.00013699,2]
[419048459,1774810243835,-500.0,0.00013699,2]
[419048460,1774810243844,-500.0,0.00013699,2]
[419048461,1774810243854,-500.0,0.00013699,2]
[419048462,1774810243864,-500.0,0.00013699,2]
[419048463,1774810243873,-500.0,0.00013699,2]
[419048464,1774810243883,-500.0,0.00013699,2]
[419048465,1774810243893,-500.0,0.00013699,2]
[419048466,1774810243903,-227.36412512,0.00013699,2]
[419048467,1774810243912,-500.0,0.00013699,2]
[419048468,1774810243922,-188.97131412,0.00013699,2]
[419048469,1774810243932,-500.0,0.00013699,2]
[419048470,1774810243944,-500.0,0.00013699,2]
[419048471,1774810243954,-500.0,0.00013699,2]
[419048472,1774810243964,-500.0,0.00013699,2]
[419048473,1774810243974,-500.0,0.00013699,2]
[419048474,1774810243984,-500.0,0.00013699,2]
[419048475,1774810243994,-500.0,0.00013699,2]
[419048476,1774810244003,-500.0,0.00013699,2]
[419048477,1774810244014,-500.0,0.00013699,2]
[419048478,1774810244025,-500.0,0.00013699,2]
[419048479,1774810244036,-500.0,0.00013699,2]
[419048480,1774810244047,-500.0,0.00013699,2]
[419048481,1774810244056,-342.71585944,0.00013699,2]
[419048482,1774810244066,-500.37169193,0.00013699,2]
[419048483,1774810244075,-500.0,0.00013699,2]
[419048484,1774810244085,-217.8882415,0.000137,2]
[419048485,1774810244095,-5291.87,0.000137,2]
[419048486,1774810244105,-5617.05,0.000137,2]
[419048487,1774810244115,-4373.32,0.000137,2]
[419048488,1774810244124,-1602.93,0.000137,2]
[419048489,1774810244134,-3651.65,0.000137,2]
[419048490,1774810244144,-20864.51,0.000137,2]
[419048491,1774810244154,-500.0,0.00013781,2]
[419048492,1774810244164,-154.52171326,0.00013889,2]
[419048493,1774810244173,-22074.0,0.000139,2]
[419048494,1774810244183,-150.0,0.00013947,2]
[419048495,1774810244192,-200.0,0.00014,2]
[419048496,1774810244202,-1024.01701625,0.00014008,2]
[419048497,1774810244211,-180.28,0.00014047,2]
[419048498,1774810244220,-26722.43184479,0.00014053,2]
[419048499,1774810244230,-2000.0,0.000141,2]
[419048500,1774810244240,-60000.0,0.00014115,2]
[419048501,1774810244249,-200.0,0.00014146,2]
[419048502,1774810244259,-784.86,0.00014167,2]
[419048503,1774810244269,-880.69,0.00014168,2]
[419048504,1774810244278,-5534.0,0.000142,3]
[419048505,1774810244288,-1000.0,0.00014247,2]
[419048506,1774810244297,-1000.0,0.00014247,2]
[419048507,1774810244306,-1000.0,0.00014247,2]
[419048508,1774810244316,-1000.0,0.00014247,2]
[419048509,1774810244325,-502.79991996,0.00014247,2]
[419048510,1774810244336,-500.0,0.00014247,2]
[419048511,1774810244347,-724.83675979,0.00014247,2]
[419048512,1774810244356,-1000.0,0.00014247,2]
[419048513,1774810244367,-1000.0,0.00014247,2]
[419048514,1774810244376,-1000.0,0.00014247,2]
[419048515,1774810244386,-1000.0,0.00014247,2]
[419048516,1774810244396,-1000.0,0.00014247,2]
[419048517,1774810244406,-1000.0,0.00014247,2]
[419048518,1774810244416,-500.38478146,0.00014247,2]
[419048519,1774810244425,-1000.0,0.00014247,2]
[419048520,1774810244435,-640.4578624,0.00014247,2]
[419048521,1774810244445,-1000.0,0.00014247,2]
[419048522,1774810244454,-910.58294734,0.00014247,2]
[419048523,1774810244464,-1000.0,0.00014247,2]
[419048524,1774810244473,-1000.0,0.00014247,2]
[419048525,1774810244483,-1000.0,0.00014247,2]
[419048526,1774810244492,-1000.0,0.00014247,2]
[419048527,1774810244503,-550.17209312,0.00014247,2]
[419048528,1774810244513,-395.74377257,0.00014247,2]
[419048529,1774810244523,-1000.0,0.00014247,2]
[419048530,1774810244534,-1000.0,0.00014247,2]
[419048531,1774810244544,-1000.0,0.00014247,2]
[419048532,1774810244554,-1000.0,0.00014247,2]
[419048533,1774810244563,-9606.5105148,0.00014278,2]
[419048534,1774810244573,-485.47,0.00014313,2]
[419048535,1774810244583,-189.38,0.00014374,2]
[419048536,1774810244592,-3240.52,0.00014384,2]
[419048537,1774810244602,-339.344,0.000144,2]
[419048538,1774810244612,-5534.0,0.000144,5]
[419048539,1774810244621,-160.0,0.00014431,2]
[419048540,1774810244631,-160.0,0.00014431,2]
[419048541,1774810244641,-959.8630956,0.00014431,2]
[419048542,1774810244650,-160.0,0.00014431,2]
[419048543,1774810244660,-784.86,0.00014441,2]
[419048544,1774810244669,-880.69,0.00014442,2]
[419048545,1774810244679,-627.39,0.00014472,2]
[419048546,1774810244688,-500.0,0.00014472,2]
[419048547,1774810244698,-662.29,0.00014472,2]
[419048548,1774810244708,-500.0,0.00014472,2]
[419048549,1774810244718,-1028.23,0.00014472,2]
[419048550,1774810244727,-627.39,0.00014547,2]
[419048551,1774810244736,-500.0,0.00014547,2]
[419048552,1774810244746,-662.29,0.00014547,2]
[419048553,1774810244756,-500.0,0.00014547,2]
[419048554,1774810244765,-1028.23,0.00014547,2]
[419048555,1774810244774,-30000.0,0.00014666,2]
[419048556,1774810244784,-200.0,0.00014694,2]
[419048557,1774810244794,-784.86,0.00014715,2]
[419048558,1774810244803,-880.69,0.00014715,2]
[419048559,1774810244813,-252.134534,0.00014784,7]
[419048560,1774810244822,-180.28,0.00014786,2]
[419048561,1774810244832,-1500.0,0.00014795,2]
[419048562,1774810244842,-1500.0,0.00014795,2]
[419048563,1774810244851,-1500.0,0.00014795,2]
[419048564,1774810244861,-1500.0,0.00014795,2]
[419048565,1774810244870,-1402.73289396,0.00014795,2]
[419048566,1774810244880,-685.01158904,0.00014795,2]
[419048567,1774810244889,-504.36577376,0.00014795,2]
[419048568,1774810244901,-502.98896701,0.00014795,2]
[419048569,1774810244910,-1500.0,0.00014795,2]
[419048570,1774810244920,-1500.0,0.00014795,2]
[419048571,1774810244930,-1500.0,0.00014795,2]
[419048572,1774810244939,-1500.0,0.00014795,2]
[419048573,1774810244949,-1507.9229115,0.00014795,2]
[419048574,1774810244959,-500.0,0.00014795,2]
[419048575,1774810244970,-1500.0,0.00014795,2]
[419048576,1774810244980,-911.77279152,0.00014795,2]
[419048577,1774810244991,-1500.0,0.00014795,2]
[419048578,1774810245000,-1500.0,0.00014795,2]
[419048579,1774810245010,-1500.0,0.00014795,2]
[419048580,1774810245020,-1000.0,0.00014795,2]
[419048581,1774810245029,-181.48576589,0.000149,2]
[419048582,1774810245038,-181.48576588,0.000149,2]
[419048583,1774810245048,-181.48576588,0.000149,2]
[419048584,1774810245057,-1000.0,0.00014951,2]
[419048585,1774810245067,-1024.01701625,0.00014954,2]
[419048586,1774810245076,-430.97,0.00014961,30]
[419048587,1774810245086,-1000.0,0.0001498,2]
[419048588,1774810245095,-784.86,0.00014989,2]
[419048589,1774810245106,-945.38,0.00014989,2]
[419048590,1774810245115,-1000.0,0.00014999,2]
[419048591,1774810245125,-300.0,0.00015,2]
[419048592,1774810245135,-1602.93,0.00015,2]
[419048593,1774810245144,-1000.0,0.00015039,2]
[419048594,1774810245153,-1000.0,0.00015041,2]
[419048595,1774810245163,-1000.0,0.0001506,2]
[419048596,1774810245172,-1000.0,0.00015066,2]
[419048597,1774810245181,-3240.52,0.00015068,2]
[419048598,1774810245191,-9606.5105148,0.00015089,2]
[419048599,1774810245200,-3651.65,0.000151,2]
[419048600,1774810245210,-20864.51,0.000151,2]
[419048601,1774810245219,-2000.0,0.000151,2]
[419048602,1774810245228,-393.00963669,0.00015111,2]
[419048603,1774810245238,-1000.0,0.00015112,2]
[419048604,1774810245247,-1000.0,0.00015123,2]
[419048605,1774810245256,-1000.0,0.00015148,2]
[419048606,1774810245266,-1000.0,0.00015151,2]
[419048607,1774810245276,-1000.0,0.00015153,2]
[419048608,1774810245285,-2315.0,0.00015183,2]
[419048609,1774810245295,-1000.0,0.00015186,2]
[419048610,1774810245304,-1000.0,0.00015188,2]
[419048611,1774810245313,-1000.0,0.00015192,2]
[419048612,1774810245322,-1000.0,0.00015196,2]
[419048613,1774810245332,-578.20924308,0.00015199,2]
[419048614,1774810245341,-151.0,0.00015199,2]
[419048615,1774810245350,-9552.16786547,0.00015199,2]
[419048616,1774810245360,-717.60346743,0.00015199,2]
[419048617,1774810245370,-500.0,0.00015199,2]
[419048618,1774810245380,-209.40437684,0.00015199,2]
[419048619,1774810245390,-500.0,0.00015199,2]
[419048620,1774810245400,-1428.38747117,0.00015199,2]
[419048621,1774810245410,-500.0,0.00015199,2]
[419048622,1774810245419,-151.0,0.00015199,2]
[419048623,1774810245429,-500.0,0.00015199,2]
[419048624,1774810245439,-151.0,0.00015199,2]
[419048625,1774810245448,-500.0,0.00015199,2]
[419048626,1774810245458,-151.0,0.00015199,2]
[419048627,1774810245467,-500.0,0.00015199,2]
[419048628,1774810245477,-500.0,0.00015199,2]
[419048629,1774810245487,-151.0,0.00015199,2]
[419048639,1774810245791,-500.0,0.00015199,2]
[419048640,1774810245801,-500.0,0.00015199,2]
[419048641,1774810245811,-500.0,0.00015199,2]
[419048642,1774810245821,-500.0,0.00015199,2]
[419048643,1774810245830,-500.0,0.00015199,2]
[419048644,1774810245840,-209.40437684,0.00015199,2]
[419048645,1774810245850,-500.0,0.00015199,2]
[419048646,1774810245859,-500.0,0.00015199,2]
[419048647,1774810245869,-500.0,0.00015199,2]
[419048648,1774810245878,-292.30151101,0.00015199,2]
[419048649,1774810245888,-500.0,0.00015199,2]
[419048650,1774810245898,-500.0,0.00015199,2]
[419048651,1774810245908,-500.0,0.00015199,2]
[419048652,1774810245918,-500.0,0.00015199,2]
[419048653,1774810245928,-500.0,0.00015199,2]
[419048654,1774810245938,-500.0,0.00015199,2]
[419048655,1774810245947,-500.0,0.00015199,2]
[419048656,1774810245957,-500.0,0.00015199,2]
[419048657,1774810245967,-500.0,0.00015199,2]
[419048658,1774810245977,-500.0,0.00015199,2]
[419048659,1774810245987,-500.0,0.00015199,2]
[419048660,1774810245997,-500.0,0.00015199,2]
[419048661,1774810246007,-500.0,0.00015199,2]
[419048662,1774810246016,-500.0,0.00015199,2]
[419048663,1774810246026,-500.0,0.00015199,2]
[419048664,1774810246036,-500.0,0.00015199,2]
[419048665,1774810246046,-500.0,0.00015199,2]
[419048666,1774810246055,-174.61919141,0.00015199,2]
[419048667,1774810246065,-500.0,0.00015199,2]
[419048668,1774810246075,-500.0,0.00015199,2]
[419048669,1774810246085,-693.3919763,0.00015199,2]
[419048670,1774810246095,-200.0,0.00015199,2]
[419048671,1774810246104,-250.0,0.00015199,2]
[419048672,1774810246114,-250.0,0.00015199,2]
[419048673,1774810246124,-250.0,0.00015199,2]
[419048674,1774810246134,-250.0,0.00015199,2]
[419048675,1774810246143,-250.0,0.00015199,2]
[419048676,1774810246154,-250.0,0.00015199,2]
[419048677,1774810246163,-209.40437684,0.00015199,2]
[419048678,1774810246173,-250.0,0.00015199,2]
[419048679,1774810246183,-250.0,0.00015199,2]
[419048680,1774810246193,-151.0,0.00015199,2]
[419048681,1774810246203,-250.0,0.00015199,2]
[419048682,1774810246212,-250.0,0.00015199,2]
[419048683,1774810246222,-250.0,0.00015199,2]
[419048684,1774810246232,-279.9045709,0.00015199,2]
[419048685,1774810246242,-151.0,0.00015199,2]
[419048686,1774810246251,-194.63986655,0.00015199,2]
[419048687,1774810246261,-743.50770149,0.00015199,2]
[419048688,1774810246271,-262.90206542,0.00015199,2]
[419048689,1774810246280,-209.40437684,0.00015199,2]
[419048690,1774810246290,-500.0,0.00015199,2]
[419048691,1774810246300,-500.0,0.00015199,2]
[419048692,1774810246310,-500.0,0.00015199,2]
[419048693,1774810246320,-500.0,0.00015199,2]
[419048695,1774810246330,-500.0,0.00015199,2]
[419048696,1774810246339,-10000.0,0.00015205,2]
[419048697,1774810246348,-1000.0,0.00015206,2]
[419048698,1774810246358,-1000.0,0.00015219,2]
[419048699,1774810246368,-1000.0,0.00015232,2]
[419048700,1774810246378,-200.0,0.00015242,2]
[419048701,1774810246388,-9905.5980765,0.00015254,2]
[419048702,1774810246397,-500.0,0.00015254,2]
[419048703,1774810246407,-151.0,0.00015254,2]
[419048704,1774810246417,-272.62944185,0.00015254,2]
[419048705,1774810246426,-784.86,0.00015263,2]
[419048706,1774810246436,-1000.0,0.00015264,2]
[419048707,1774810246446,-187.77689859,0.00015273,2]
[419048708,1774810246456,-1000.0,0.00015282,2]
[419048709,1774810246466,-1000.0,0.00015282,2]
[419048710,1774810246476,-1000.0,0.00015283,2]
[419048712,1774810246485,-2000.0,0.00015301,2]
[419048713,1774810246495,-2000.0,0.00015301,2]
[419048714,1774810246504,-2000.0,0.00015301,2]
[419048715,1774810246514,-2000.0,0.00015301,2]
[419048716,1774810246524,-2000.0,0.00015301,2]
[419048717,1774810246534,-2000.0,0.00015301,2]
[419048720,1774810246543,-2000.0,0.00015301,2]
[419048722,1774810246552,-2000.0,0.00015301,2]
[419048724,1774810246562,-2000.0,0.00015301,2]
[419048726,1774810246571,-2000.0,0.00015301,2]
[419048728,1774810246581,-2000.0,0.00015308,2]
[419048730,1774810246592,-2000.0,0.00015308,2]
[419048732,1774810246601,-2000.0,0.00015308,2]
[419048734,1774810246610,-2000.0,0.00015308,2]
[419048736,1774810246620,-2000.0,0.00015308,2]